bitfinex-derivatives/quotes_ETHF0:USTF0_20250427
["timestamp","ask_amount","ask_price","bid_price","bid_amount"]
[1745766137831,3.69,1797.1,1797.0,5.396]
[1745766138022,4.80254,1797.1,1797.0,5.396]
[1745766138223,3.69,1797.1,1797.0,5.396]
[1745766139633,4.80254,1797.1,1797.0,5.396]
[1745766139929,3.69,1797.1,1797.0,5.396]
[1745766140430,4.80254,1797.1,1797.0,5.396]
[1745766142433,3.69,1797.1,1797.0,6.5086]
[1745766142628,3.69,1797.1,1797.0,7.0408]
[1745766142831,4.80254,1797.1,1797.0,7.0408]
[1745766143033,3.69,1797.1,1797.0,8.1534]
[1745766143836,4.80254,1797.1,1797.0,6.189]
[1745766144731,4.80254,1797.1,1797.0,5.396]
[1745766148337,3.69,1797.1,1797.0,6.5086]
[1745766148533,4.80254,1797.1,1797.0,5.396]
[1745766148735,3.69,1797.1,1797.0,6.5086]
[1745766148939,4.80254,1797.1,1797.0,6.5086]
[1745766149238,3.69,1797.1,1797.0,6.5086]
[1745766149436,4.80254,1797.1,1797.0,6.5086]
[1745766150238,4.80254,1797.1,1797.0,5.396]
[1745766151038,5.61164,1797.1,1797.0,5.396]
[1745766152536,5.70891952,1797.1,1797.0,5.396]
[1745766153937,5.70891968,1797.1,1797.0,5.396]
[1745766154439,5.61164,1797.1,1797.0,5.396]
[1745766156442,5.70892094,1797.1,1797.0,5.396]
[1745766157638,5.70892094,1797.1,1797.0,3.722]
[1745766157945,1.11291,1796.5,1796.4,0.12307]
[1745766158136,3.689,1796.5,1796.4,3.84507]
[1745766158336,4.80191,1796.5,1796.4,44.64507]
[1745766158540,8.11161,1796.5,1796.4,3.84507]
[1745766158742,8.20892266,1796.5,1796.4,3.84507]
[1745766159341,8.20892266,1796.5,1796.4,0.12307]
[1745766168053,8.20890614,1796.5,1796.4,0.12307]
[1745766169549,8.20889729,1796.5,1796.4,0.12307]
[1745766170653,8.20889729,1796.5,1795.9,4.0056]
[1745766170654,1.11322,1796.0,1795.9,3.2078]
[1745766170947,4.80227,1796.0,1795.7,3.2078]
[1745766171147,4.80227,1796.0,1795.9,3.722]
[1745766171351,6.46177,1796.0,1795.9,3.722]
[1745766171553,7.30787,1796.0,1795.9,3.722]
[1745766173162,7.30787,1796.0,1795.9,5.3268]
[1745766174665,7.40512234,1796.0,1795.9,3.722]
[1745766175358,7.40512175,1796.0,1795.9,3.722]
[1745766176063,7.40512175,1796.0,1795.9,5.3829]
[1745766176668,7.30787,1796.0,1795.9,5.3829]
[1745766177055,7.40513275,1796.0,1795.9,5.3829]
[1745766178665,7.40513217,1796.0,1795.9,5.3829]
[1745766178864,7.40513217,1796.0,1795.9,3.722]
[1745766179367,1.11341,1795.7,1795.6,0.12968]
[1745766179569,4.80341,1795.7,1795.6,42.51078]
[1745766180762,3.69,1795.7,1795.6,43.62425]
[1745766180965,4.80341,1795.7,1795.6,43.34688]
[1745766181459,4.80341,1795.7,1795.6,42.51078]
[1745766181656,5.66771,1795.7,1795.6,42.51078]
[1745766181861,4.80341,1795.7,1795.6,42.51078]
[1745766183265,3.2078,1795.9,1795.8,1.11335]
[1745766183471,8.01099,1796.1,1795.9,1.11325]
[1745766183670,8.01099,1796.1,1796.0,2.3777]
[1745766184272,8.01099,1796.1,1796.0,6.0997]
[1745766185267,6.8978,1796.1,1796.0,6.0997]
[1745766185473,8.01096,1796.1,1796.0,6.0997]
[1745766186472,6.8978,1796.1,1796.0,7.21292]
[1745766186663,1.11313,1796.2,1796.1,1.11316]
[1745766186862,4.80313,1796.2,1796.1,2.4144]
[1745766187269,4.80313,1796.2,1796.1,3.52756]
[1745766187470,3.69,1796.2,1796.1,3.52756]
[1745766187666,6.513,1796.6,1796.1,10.6222]
[1745766187866,1.113,1796.4,1796.2,2.70328]
[1745766188062,1.11304,1796.3,1796.1,5.14513]
[1745766188267,1.11304,1796.3,1796.2,44.522]
[1745766188666,1.11301,1796.4,1796.2,45.6351]
[1745766188971,3.69,1796.5,1796.3,0.8503]
[1745766189173,3.69,1796.5,1796.4,1.11298]
[1745766189365,3.69,1796.5,1796.3,5.68529]
[1745766189566,3.69,1796.5,1796.3,4.5723]
[1745766189766,4.80296,1796.5,1796.3,5.68533]
[1745766189967,3.69,1796.5,1796.3,8.89313]
[1745766190169,4.80292,1796.5,1796.3,8.89313]
[1745766190573,4.80292,1796.5,1796.3,7.7801]
[1745766190773,4.80292,1796.5,1796.3,8.89313]
[1745766190971,1.11298,1796.4,1796.3,7.7801]
[1745766191874,4.80295,1796.5,1796.3,8.89314]
[1745766192170,3.69,1796.5,1796.3,6.9298]
[1745766192369,1.11298,1796.4,1796.3,6.9298]
[1745766192574,2.91699288,1796.4,1796.3,6.9298]
[1745766192973,2.81968,1796.4,1796.3,6.9298]
[1745766193477,2.91699374,1796.4,1796.3,6.9298]
[1745766193774,2.91699374,1796.4,1796.3,3.722]
[1745766193973,6.12479374,1796.4,1796.3,3.722]
[1745766194174,1.11318,1796.1,1795.9,1.91244]
[1745766194375,3.689,1796.0,1795.9,42.71244]
[1745766195177,3.689,1796.0,1795.9,46.43444]
[1745766195373,3.689,1796.0,1795.9,51.43444]
[1745766195579,2.81969,1796.4,1795.9,50.3212]
[1745766195778,3.689,1796.3,1795.9,45.3212]
[1745766196180,3.689,1796.3,1796.1,1.11312]
[1745766196382,3.689,1796.3,1796.2,1.1131]
[1745766196679,3.78631401,1796.3,1796.0,3.2078]
[1745766196867,3.689,1796.3,1796.1,1.1131]
[1745766197068,4.80204,1796.3,1796.0,6.9298]
[1745766197573,4.80204,1796.3,1796.1,1.11311]
[1745766197881,4.80204,1796.3,1796.0,8.04302]
[1745766198269,4.80204,1796.3,1796.0,4.83522]
[1745766198473,3.689,1796.3,1796.0,8.04302]
[1745766198881,4.80204,1796.3,1796.0,8.04302]
[1745766199580,3.689,1796.3,1796.1,1.11313]
[1745766199775,4.5432,1796.4,1796.3,1.11304]
[1745766199976,3.688,1796.4,1796.3,1.11304]
[1745766200177,3.688,1796.4,1796.3,47.30134]
[1745766201069,4.80098,1796.4,1796.3,46.1883]
[1745766201982,4.80098,1796.4,1796.3,47.30134]
[1745766202185,3.688,1796.4,1796.3,47.30134]
[1745766204182,4.80098,1796.4,1796.3,47.30134]
[1745766204683,3.688,1796.4,1796.3,47.30134]
[1745766205278,4.80098,1796.4,1796.3,47.30134]
[1745766205787,3.688,1796.4,1796.3,47.30134]
[1745766208087,3.688,1796.4,1796.3,52.21354]
[1745766208787,3.68315182,1796.4,1796.3,52.21354]
[1745766209087,1.6788,1796.7,1796.6,1.11285]
[1745766209386,5.3658,1796.7,1796.6,1.11285]
[1745766209588,3.2078,1796.8,1796.7,1.11279]
[1745766209888,6.8948,1796.8,1796.7,1.11279]
[1745766210278,8.5371,1796.8,1796.7,4.83479]
[1745766210478,8.5371,1796.8,1796.7,6.44629]
[1745766213885,9.74712265,1796.8,1796.7,3.722]
[1745766214882,9.74712828,1796.8,1796.7,3.722]
[1745766215186,8.63439828,1796.8,1796.7,3.722]
[1745766215390,9.74712828,1796.8,1796.7,3.722]
[1745766216380,9.64983,1796.8,1796.7,3.722]
[1745766216581,9.74712697,1796.8,1796.7,3.722]
[1745766216888,8.63439697,1796.8,1796.7,3.722]
[1745766217793,6.53932697,1796.8,1796.7,3.722]
[1745766217980,6.53932591,1796.8,1796.7,3.722]
[1745766219480,6.53932563,1796.8,1796.7,3.722]
[1745766220981,5.4265947,1796.8,1796.7,5.70299]
[1745766221181,6.44203,1796.8,1796.7,6.29]
[1745766221376,6.44203,1796.8,1796.7,3.722]
[1745766221581,6.53932441,1796.8,1796.7,3.722]
[1745766224189,6.5393343,1796.8,1796.7,3.722]
[1745766226091,5.4266043,1796.8,1796.7,3.722]
[1745766226292,3.7843043,1796.8,1796.7,4.83479]
[1745766226588,3.687,1796.8,1796.7,4.83479]
[1745766227692,3.687,1797.0,1796.9,1.11265]
[1745766228086,4.7996,1797.0,1796.9,4.83465]
[1745766228389,4.7996,1797.0,1796.9,6.2449]
[1745766228795,4.7996,1797.0,1796.9,7.35757]
[1745766229089,62.491,1797.1,1797.0,1.1126]
[1745766229296,0.8011,1797.4,1797.0,1.1126]
[1745766229297,0.8011,1797.4,1797.0,1.5707]
[1745766229493,3.685,1797.4,1797.3,4.32022]
[1745766229690,3.685,1797.4,1797.3,1.11242]
[1745766230193,2.82177,1797.6,1797.4,1.11235]
[1745766230495,3.685,1797.5,1797.4,0.8561]
[1745766230690,4.7973,1797.5,1797.4,0.8561]
[1745766232393,3.685,1797.5,1797.4,1.96846]
[1745766233099,3.685,1797.5,1797.4,46.49046]
[1745766233286,70.11834,1797.8,1797.6,1.11223]
[1745766233486,4.79617,1797.7,1797.5,1.11226]
[1745766233896,3.684,1797.7,1797.5,1.11226]
[1745766234888,1.11226,1797.6,1797.4,40.8]
[1745766235197,2.69606,1797.6,1797.4,40.8]
[1745766235695,1.5838,1797.5,1797.4,40.8]
[1745766235893,1.5838,1797.5,1797.4,41.91236]
[1745766236692,3.684,1797.7,1797.4,40.8]
[1745766237000,5.2678,1797.7,1797.6,1.11223]
[1745766237799,6.47676754,1797.7,1797.5,1.11226]
[1745766238098,1.6328,1797.6,1797.5,1.11226]
[1745766241199,2.74503,1797.6,1797.5,1.11226]
[1745766241396,2.74503,1797.6,1797.4,41.91231]
[1745766241698,3.684,1797.7,1797.4,41.91231]
[1745766241699,1.7394,1797.5,1797.4,41.91231]
[1745766243500,3.684,1797.7,1797.5,1.11225]
[1745766243799,1.7394,1797.6,1797.5,1.11225]
[1745766243999,1.7394,1797.6,1797.4,41.91233]
[1745766244192,2.85164,1797.6,1797.4,41.91233]
[1745766244503,1.1123,1797.5,1797.4,40.8]
[1745766244701,6.84409223,1797.5,1797.2,2.75055]
[1745766244897,5.62916,1797.4,1797.2,2.75055]
[1745766245098,1.11242,1797.3,1797.2,40.8]
[1745766245302,2.71382,1797.3,1797.2,40.8]
[1745766245599,4.90579864,1797.3,1796.9,5.17414]
[1745766245805,1.11256,1797.1,1796.9,5.17414]
[1745766245997,1.11256,1797.1,1796.9,4.0615]
[1745766246198,1.1126,1797.0,1796.9,48.5835]
[1745766246398,1.1126,1797.0,1796.9,6.9298]
[1745766246399,1.9122,1797.0,1796.9,6.9298]
[1745766246598,3.5136,1797.0,1796.9,6.9298]
[1745766247702,2.401,1797.0,1796.9,6.9298]
[1745766248005,3.684,1797.1,1796.9,6.9298]
[1745766248201,3.684,1797.2,1797.1,1.1125]
[1745766248408,3.684,1797.2,1797.0,3.55727]
[1745766248708,4.7965,1797.2,1797.0,3.55727]
[1745766248901,4.7965,1797.2,1797.1,1.611]
[1745766249600,1.11254,1797.1,1797.0,3.722]
[1745766249800,3.60694,1797.1,1797.0,3.722]
[1745766251005,3.60694,1797.1,1797.0,5.3001]
[1745766252710,3.60694,1797.1,1797.0,3.722]
[1745766253207,3.70354809,1797.1,1797.0,3.722]
[1745766253403,3.60694,1797.1,1797.0,3.722]
[1745766253708,3.70354873,1797.1,1797.0,3.722]
[1745766255004,3.70358462,1797.1,1797.0,3.722]
[1745766255410,3.684,1797.1,1797.0,4.8346]
[1745766255812,3.684,1797.1,1797.0,3.722]
[1745766256014,4.79654,1797.1,1797.0,6.2376]
[1745766256413,4.79654,1797.1,1797.0,5.3982]
[1745766258410,2.74293,1797.2,1797.0,7.3404]
[1745766258613,2.74293,1797.2,1797.1,1.5707]
[1745766258909,6.42693,1797.2,1797.1,1.5707]
[1745766259111,3.684,1797.2,1797.1,2.68324]
[1745766259512,4.79648,1797.2,1797.1,2.68324]
[1745766259914,8.00325,1797.3,1797.1,2.68324]
[1745766260115,8.00325,1797.3,1797.2,1.6408]
[1745766260417,1.11239,1797.4,1797.3,1.11242]
[1745766260716,3.683,1797.4,1797.3,1.90242]
[1745766260918,4.79536,1797.4,1797.3,0.79]
[1745766261417,4.79536,1797.4,1797.3,2.4308]
[1745766262120,4.79536,1797.4,1797.3,1.6408]
[1745766262322,7.31106,1797.4,1797.3,1.6408]
[1745766263815,6.1987,1797.4,1797.3,1.6408]
[1745766265515,6.1987,1797.4,1797.0,3.2078]
[1745766265516,1.11251,1797.2,1797.0,3.2078]
[1745766265712,0.8582,1797.1,1797.0,3.2078]
[1745766265912,6.1743,1797.1,1797.0,3.2078]
[1745766266117,6.1743,1797.1,1797.0,8.5777]
[1745766266422,6.1743,1797.1,1797.0,9.6903]
[1745766266624,6.1743,1797.1,1797.0,8.5777]
[1745766266920,6.1743,1797.1,1797.0,9.6903]
[1745766269329,7.28684,1797.1,1797.0,8.5777]
[1745766270129,7.28684,1797.1,1797.0,3.722]
[1745766270426,7.28684,1797.1,1796.8,5.13539]
[1745766270427,1.11261,1797.0,1796.8,5.13539]
[1745766270625,2.82551,1797.0,1796.8,5.13539]
[1745766270826,2.82551,1797.0,1796.8,6.75659]
[1745766271127,1.7129,1797.0,1796.8,9.3659]
[1745766271428,1.6287,1796.9,1796.8,9.3659]
[1745766271727,4.5402,1797.1,1796.8,7.7447]
[1745766271927,1.6287,1797.0,1796.8,7.7447]
[1745766272128,1.6287,1797.0,1796.9,1.11267]
[1745766273119,1.6287,1797.0,1796.9,4.83467]
[1745766276031,4.5402,1797.1,1797.0,1.1126]
[1745766276533,3.682,1797.1,1797.0,1.1126]
[1745766277138,3.682,1797.1,1797.0,4.8346]
[1745766278838,5.3879,1797.1,1797.0,4.8346]
[1745766279337,5.3879,1797.1,1797.0,3.722]
[1745766279834,6.50044,1797.1,1797.0,3.722]
[1745766280335,5.3879,1797.1,1797.0,3.722]
[1745766280738,5.3879,1797.1,1797.0,4.8346]
[1745766281035,6.50044,1797.1,1797.0,4.8346]
[1745766282139,5.3879,1797.1,1797.0,4.8346]
[1745766282437,6.50044,1797.1,1797.0,4.8346]
[1745766282640,6.50044,1797.1,1797.0,3.722]
[1745766285141,1.11267,1796.9,1796.8,4.0227]
[1745766285840,1.11273,1796.8,1796.7,40.8]
[1745766286235,1.11273,1796.8,1796.7,44.522]
[1745766286537,2.82203,1796.8,1796.7,44.522]
[1745766287045,2.82203,1796.8,1796.7,3.722]
[1745766287336,6.60112737,1796.8,1796.7,3.62472412]
[1745766287539,11.60112737,1796.8,1796.7,3.62472412]
[1745766287940,6.60114154,1796.8,1796.7,2.47083412]
[1745766288132,1.11298,1796.4,1796.3,1.6083]
[1745766288333,4.79598,1796.4,1796.3,1.6083]
[1745766288535,1.11304,1796.3,1796.2,0.8009]
[1745766288840,2.73184,1796.3,1796.2,2.4092]
[1745766289136,2.73184,1796.3,1796.2,6.1312]
[1745766289637,2.73184,1796.3,1796.2,5.3303]
[1745766290033,2.73184,1796.3,1796.2,3.722]
[1745766290433,5.93964,1796.3,1796.2,3.722]
[1745766290634,6.03576424,1796.3,1796.2,3.722]
[1745766291231,1.11322,1796.0,1795.9,44.8515]
[1745766291433,4.79522,1796.0,1795.9,42.4145]
[1745766291635,1.11329,1795.9,1795.8,11.11596784]
[1745766291836,2.70529,1795.9,1795.8,11.11596784]
[1745766292038,2.70529,1795.9,1795.8,12.73046784]
[1745766292446,2.70529,1795.9,1795.8,11.11596784]
[1745766292837,2.70529,1795.9,1795.8,3.722]
[1745766294144,1.11345,1795.7,1795.6,40.8]
[1745766294336,1.1135,1795.6,1795.4,1.7241]
[1745766294645,1.7233,1795.6,1795.4,2.83768]
[1745766294844,1.7233,1795.6,1795.4,43.63768]
[1745766295045,2.83677,1795.6,1795.5,1.7241]
[1745766295238,1.7233,1795.6,1795.5,5.4461]
[1745766295639,2.83677,1795.6,1795.5,5.4461]
[1745766297948,1.7233,1795.6,1795.5,5.4461]
[1745766298147,2.83677,1795.6,1795.5,5.4461]
[1745766298546,1.7233,1795.6,1795.5,5.4461]
[1745766298843,3.682,1795.7,1795.5,5.4461]
[1745766299046,4.79545,1795.7,1795.6,1.629]
[1745766299646,4.79641,1795.7,1795.6,1.629]
[1745766300045,5.912,1796.2,1795.6,13.5198]
[1745766300252,9.2805,1796.7,1796.2,1.11306]
[1745766300545,1.11297,1796.5,1796.3,40.8]
[1745766300748,1.11297,1796.5,1796.4,1.629]
[1745766301134,1.11298,1796.4,1796.3,40.8]
[1745766301338,4.79598,1796.4,1796.3,40.8]
[1745766301639,3.683,1796.4,1796.3,40.8]
[1745766301838,3.683,1796.4,1796.3,43.54204]
[1745766302143,3.683,1796.4,1796.3,47.26404]
[1745766302346,3.683,1796.4,1796.3,46.151]
[1745766302543,3.683,1796.4,1796.3,47.26404]
[1745766303138,3.683,1796.4,1796.3,46.151]
[1745766303548,3.683,1796.4,1796.3,47.26404]
[1745766303846,3.683,1796.4,1796.3,46.151]
[1745766304544,4.79598,1796.4,1796.3,46.151]
[1745766304748,6.51098,1796.4,1796.3,44.522]
[1745766304946,6.51098,1796.4,1796.3,3.722]
[1745766306148,5.398,1796.4,1796.3,3.722]
[1745766306349,3.683,1796.5,1796.4,1.11295]
[1745766306544,3.683,1796.5,1796.4,2.74875]
[1745766307148,3.683,1796.5,1796.4,6.47075]
[1745766308049,4.79591,1796.5,1796.4,5.3578]
[1745766309151,4.79591,1796.5,1796.4,3.722]
[1745766309349,4.89190026,1796.5,1796.4,3.722]
[1745766309545,4.89189598,1796.5,1796.4,3.722]
[1745766310151,1.11304,1796.3,1796.2,1.6031]
[1745766310843,2.82194,1796.3,1796.2,1.6031]
[1745766311252,2.82194,1796.3,1796.2,5.3251]
[1745766311452,1.11304,1796.3,1796.2,5.3251]
[1745766312552,2.80064,1796.3,1796.2,5.3251]
[1745766314658,1.6876,1796.3,1796.2,6.4382]
[1745766314950,2.80064,1796.3,1796.2,5.3251]
[1745766315345,1.6876,1796.3,1796.2,6.4382]
[1745766315955,2.80064,1796.3,1796.2,5.3251]
[1745766316253,3.66394,1796.3,1796.2,3.722]
[1745766316754,2.5509,1796.3,1796.2,3.722]
[1745766316955,3.66394,1796.3,1796.2,5.2931]
[1745766318757,3.66394,1796.3,1796.2,6.1053]
[1745766319159,1.6876,1796.3,1796.2,7.2184]
[1745766319355,8.6008,1796.5,1796.2,6.9541]
[1745766319554,1.113,1796.4,1796.3,1.5699]
[1745766320260,1.113,1796.4,1796.3,5.2919]
[1745766323156,1.113,1796.4,1796.3,3.722]
[1745766323359,6.08934315,1796.4,1796.3,3.722]
[1745766323960,11.08934315,1796.4,1796.3,3.722]
[1745766324161,1.11316,1796.1,1796.0,3.2078]
[1745766324362,4.79516,1796.1,1796.0,3.2078]
[1745766324964,1.11335,1795.8,1795.7,4.0644]
[1745766325159,1.11347,1795.7,1795.5,4.8162]
[1745766325459,1.11347,1795.7,1795.6,42.4084]
[1745766325962,2.78597,1795.7,1795.6,42.4084]
[1745766326561,1.6725,1795.7,1795.6,42.4084]
[1745766327461,4.82348,1795.8,1795.6,43.52187]
[1745766327663,4.82348,1795.8,1795.7,1.6901]
[1745766327861,6.47408,1795.8,1795.7,1.6901]
[1745766328161,6.47408,1795.8,1795.7,5.4121]
[1745766328565,5.3607,1795.8,1795.7,5.4121]
[1745766328763,6.47405,1795.8,1795.7,5.4121]
[1745766329863,6.44595,1795.8,1795.7,5.4121]
[1745766330362,6.44595,1795.8,1795.7,3.722]
[1745766332362,6.44595,1795.8,1795.7,2.31818]
[1745766332363,11.5418407,1795.8,1795.7,2.31818]
[1745766332665,11.54183151,1795.8,1795.7,1.07429]
[1745766332864,11.54183151,1795.8,1795.7,1e-05]
[1745766333067,1.11372,1795.2,1795.1,44.0078]
[1745766333263,4.79672,1795.2,1795.1,3.2078]
[1745766334171,6.47202,1795.2,1795.1,3.2078]
[1745766335565,1.11378,1795.1,1795.0,3.722]
[1745766335870,4.6110247,1795.1,1795.0,3.722]
[1745766336067,9.6110247,1795.1,1795.0,3.722]
[1745766336269,1.11403,1794.7,1794.6,1.6944]
[1745766336468,4.79703,1794.7,1794.6,1.6944]
[1745766337460,6.49493,1794.7,1794.6,1.6944]
[1745766338972,1.11409,1794.6,1794.5,44.522]
[1745766339269,5.93489,1794.6,1794.5,3.722]
[1745766339774,4.8208,1794.6,1794.5,3.722]
[1745766339976,2.72709,1794.6,1794.5,3.722]
[1745766340166,5.63668,1794.7,1794.5,3.722]
[1745766340372,5.63668,1794.7,1794.6,1.7195]
[1745766340571,2.72694,1794.9,1794.6,1.7195]
[1745766340771,3.684,1794.8,1794.6,2.83357]
[1745766341076,4.79797,1794.8,1794.7,1.7195]
[1745766342176,4.79797,1794.8,1794.7,5.4415]
[1745766342978,3.684,1794.8,1794.7,6.55553]
[1745766343176,3.684,1794.8,1794.7,14.76333]
[1745766343475,3.684,1794.8,1794.7,13.6493]
[1745766343675,3.684,1794.8,1794.7,14.76333]
[1745766343873,3.684,1794.8,1794.7,9.76333]
[1745766344277,3.684,1794.8,1794.7,8.6493]
[1745766344774,3.684,1794.8,1794.7,9.76333]
[1745766345979,4.79797,1794.8,1794.7,5.4415]
[1745766346778,8.00577,1794.8,1794.7,3.722]
[1745766347579,13.00577,1794.8,1794.7,3.722]
[1745766347777,13.1016368,1794.8,1794.7,3.722]
[1745766348077,13.00577,1794.8,1794.3,41.6306]
[1745766348280,1.11422,1794.4,1794.3,40.8]
[1745766348471,4.79822,1794.4,1794.3,40.8]
[1745766348778,3.684,1794.4,1794.2,5.95722]
[1745766348972,3.684,1794.4,1794.3,1.11428]
[1745766349174,5.3288,1794.4,1794.3,5.3571]
[1745766349474,13.5366,1794.4,1793.9,3.22852]
[1745766349685,1.11447,1794.0,1793.9,0.02072]
[1745766349980,8.00627,1794.0,1793.9,0.02072]
[1745766350279,13.00627,1794.0,1793.9,0.02072]
[1745766350675,8.4686,1794.0,1793.9,0.02072]
[1745766351066,8.4686,1794.0,1793.9,3.74272]
[1745766351467,4.7846,1794.0,1793.9,3.74272]
[1745766351679,1.5768,1794.0,1793.9,3.74272]
[1745766351978,9.58307,1794.0,1793.9,3.74272]
[1745766352180,9.67894793,1794.0,1793.9,3.74272]
[1745766352381,8.4686,1794.0,1793.9,3.74272]
[1745766353174,9.58307,1794.0,1793.9,3.74272]
[1745766353479,8.4686,1794.0,1793.9,3.74272]
[1745766354873,9.58307,1794.0,1793.9,3.74272]
[1745766355469,8.4686,1794.0,1793.9,3.74272]
[1745766355666,9.58307,1794.0,1793.9,3.74272]
[1745766357181,8.4686,1794.0,1793.9,0.02072]
[1745766357581,6.8918,1794.0,1793.9,0.02072]
[1745766357983,8.00627,1794.0,1793.9,0.02072]
[1745766358280,8.00627,1794.0,1793.9,5.44982]
[1745766358484,6.8918,1794.0,1793.9,5.44982]
[1745766358981,8.00627,1794.0,1793.9,5.44982]
[1745766359180,3.2078,1794.1,1793.9,6.56435]
[1745766359379,1.6587,1794.2,1794.0,2.82157]
[1745766359577,6.05712,1794.3,1794.1,2.7683]
[1745766359779,6.05712,1794.3,1794.2,1.6539]
[1745766359979,11.46371385,1794.3,1794.2,1.6539]
[1745766360184,11.36772,1794.3,1794.2,5.3759]
[1745766361382,3.685,1794.3,1794.2,5.3759]
[1745766361592,3.685,1794.3,1794.2,6.49021]
[1745766361774,3.685,1794.3,1794.2,6.2258]
[1745766361977,4.79928,1794.3,1794.2,6.2258]
[1745766362187,4.79928,1794.3,1794.2,7.34014]
[1745766362483,4.82748,1794.3,1794.2,7.34014]
[1745766362884,4.82748,1794.3,1794.2,6.2258]
[1745766363886,4.82748,1794.3,1794.2,3.722]
[1745766364385,6.46958,1794.3,1794.2,3.722]
[1745766365185,9.67738,1794.3,1794.2,3.722]
[1745766365886,9.67312842,1794.3,1794.2,3.722]
[1745766366087,9.76914583,1794.3,1794.2,3.722]
[1745766367385,1.11453,1793.9,1793.8,2.5257]
[1745766367588,3.685,1793.9,1793.8,2.5257]
[1745766368082,3.685,1793.9,1793.4,4.0504]
[1745766368384,3.2771,1793.8,1793.5,1.11473]
[1745766368583,3.2771,1793.8,1793.6,1.11469]
[1745766368780,3.685,1793.9,1793.7,2.79914]
[1745766368979,3.685,1793.9,1793.4,4.07529]
[1745766368980,3.685,1793.9,1793.8,2.5271]
[1745766369179,5.4075,1793.9,1793.8,6.2491]
[1745766369584,6.52203,1793.9,1793.8,6.2491]
[1745766369786,6.52203,1793.9,1793.8,3.722]
[1745766369979,5.4075,1793.9,1793.8,3.722]
[1745766370487,3.685,1793.9,1793.8,3.722]
[1745766371182,4.79953,1793.9,1793.8,5.4065]
[1745766371486,5.4075,1793.9,1793.8,5.4065]
[1745766371886,5.4075,1793.9,1793.8,3.722]
[1745766372082,6.61800407,1793.9,1793.6,1.6313]
[1745766372288,1.11465,1793.7,1793.6,1.6313]
[1745766372688,2.80355,1793.7,1793.6,1.6313]
[1745766372889,1.11471,1793.6,1793.5,0.8426]
[1745766373092,4.80071,1793.6,1793.5,6.1959]
[1745766373282,4.80071,1793.6,1793.5,5.3533]
[1745766373587,4.80071,1793.6,1793.5,3.722]
[1745766374181,4.80071,1793.6,1793.5,5.3533]
[1745766374790,3.686,1793.6,1793.5,5.3533]
[1745766375183,3.686,1793.6,1793.5,6.46808]
[1745766375501,3.686,1793.6,1793.5,5.3533]
[1745766375689,4.80071,1793.6,1793.5,5.3533]
[1745766378884,4.80071,1793.6,1793.5,3.722]
[1745766379792,3.686,1793.6,1793.5,3.722]
[1745766379989,3.686,1793.6,1793.5,6.54698]
[1745766380290,4.80071,1793.6,1793.5,5.4322]
[1745766380982,3.686,1793.6,1793.5,5.4322]
[1745766381589,4.80071,1793.6,1793.5,5.4322]
[1745766383592,4.80071,1793.6,1793.5,6.54698]
[1745766383982,3.686,1793.6,1793.5,6.54698]
[1745766386185,4.80071,1793.6,1793.5,3.722]
[1745766386386,3.686,1793.6,1793.5,3.722]
[1745766386585,3.686,1793.6,1793.5,6.42958]
[1745766386786,4.80071,1793.6,1793.5,3.722]
[1745766386986,6.42621,1793.6,1793.5,3.722]
[1745766387493,6.45441,1793.6,1793.5,3.722]
[1745766387894,9.66221,1793.6,1793.5,3.722]
[1745766388588,9.75811711,1793.6,1793.5,3.722]
[1745766389097,8.64340711,1793.6,1793.5,4.83678]
[1745766389286,8.5475,1793.6,1793.5,4.83678]
[1745766390087,8.5475,1793.6,1793.5,3.722]
[1745766390292,9.66221,1793.6,1793.5,3.722]
[1745766390487,8.5475,1793.6,1793.5,3.722]
[1745766390682,3.7142,1793.6,1793.5,4.83678]
[1745766390888,0.0282,1793.6,1793.5,7.33538]
[1745766392191,4.35071,1793.6,1793.5,3.722]
[1745766392396,6.02081,1793.6,1793.5,3.722]
[1745766394296,6.11671628,1793.6,1793.5,3.722]
[1745766394890,11.11671628,1793.6,1793.5,3.722]
[1745766395090,2.78703,1793.5,1792.7,3.2385]
[1745766395293,3.2078,1793.2,1792.8,1.6433]
[1745766395500,3.687,1793.1,1793.0,1.11509]
[1745766395694,2.4972,1793.4,1793.1,1.11502]
[1745766395895,4.8019,1793.3,1793.2,1.6433]
[1745766396198,6.51982,1793.3,1793.0,5.3267]
[1745766396394,3.687,1793.3,1793.1,1.6047]
[1745766396600,3.687,1793.3,1793.1,2.71967]
[1745766396799,3.687,1793.3,1793.2,2.4524]
[1745766397201,4.8019,1793.3,1793.2,3.722]
[1745766397391,6.5198,1793.3,1793.2,3.722]
[1745766397806,9.7276,1793.3,1793.2,3.722]
[1745766399503,9.82352002,1793.3,1793.2,3.722]
[1745766400608,14.82352002,1793.3,1793.2,3.722]
[1745766401104,1.11515,1792.9,1792.8,1.681]
[1745766401299,4.80215,1792.9,1792.6,1.90351]
[1745766401501,2.73491,1792.8,1792.6,1.681]
[1745766402003,3.56801,1792.8,1792.7,0.0307]